fUST/lending_fUST_20251007
["ID","MTS","AMOUNT","RATE_DAILY","PERIOD"]
[389781139,1759846247570,-151.0,0.00021445,7]
[389781148,1759846247580,-226.855339,0.00021445,7]
[389781150,1759846247655,-226.855339,0.00021445,7]
[389781152,1759846247665,-226.855339,0.00021445,7]
[389781154,1759846247675,-226.855339,0.00021445,7]
[389781156,1759846247685,-151.0,0.00021445,7]
[389781158,1759846247695,-151.0,0.00021445,7]
[389781160,1759846247706,-276.279828,0.00021445,7]
[389781162,1759846247716,-216.384438,0.00021445,7]
[389781164,1759846247726,-151.0,0.00021445,7]
[389781166,1759846247735,-151.0,0.00021445,7]
[389781168,1759846247746,-151.0,0.00021445,7]
[389781170,1759846247758,-151.0,0.00021445,7]
[389781172,1759846247769,-151.0,0.00021445,7]
[389781174,1759846247780,-1024.730886,0.00021445,7]
[389781176,1759846247790,-1024.730886,0.00021445,7]
[389781178,1759846247800,-1024.730886,0.00021445,7]
[389781180,1759846247815,-1024.730886,0.00021445,7]
[389781182,1759846247824,-151.0,0.00021445,7]
[389781184,1759846247834,-152.623192,0.00021445,7]
[389781186,1759846247843,-1274.190011,0.00021445,7]
[389781188,1759846247853,-1274.190011,0.00021445,7]
[389781190,1759846247863,-432.621204,0.00021445,7]
[389781192,1759846247872,-1274.190011,0.00021445,7]
[389781194,1759846247882,-432.621204,0.00021445,7]
[389781196,1759846247891,-1274.190011,0.00021445,7]
[389781198,1759846247901,-432.621204,0.00021445,7]
[389781200,1759846247911,-151.0,0.00021445,7]
[389781202,1759846247920,-432.621204,0.00021445,7]
[389781203,1759846247929,-151.0,0.00021445,7]
[389781205,1759846247939,-151.0,0.00021445,7]
[389781207,1759846247949,-218.264212,0.00021445,7]
[389781209,1759846247962,-218.264212,0.00021445,7]
[389781211,1759846247972,-218.264212,0.00021445,7]
[389781213,1759846247982,-218.264212,0.00021445,7]
[389781215,1759846247991,-151.0,0.00021445,7]
[389781217,1759846248000,-151.0,0.00021445,7]
[389781219,1759846248010,-151.0,0.00021445,7]
[389781221,1759846248020,-151.0,0.00021445,7]
[389781223,1759846248030,-712.235839,0.00021445,7]
[389781225,1759846248041,-252.157268,0.00021445,7]
[389781227,1759846248053,-712.235839,0.00021445,7]
[389781229,1759846248069,-151.0,0.00021445,7]
[389781231,1759846248079,-712.235839,0.00021445,7]
[389781233,1759846248090,-712.235839,0.00021445,7]
[389781235,1759846248100,-151.0,0.00021445,7]
[389781237,1759846248110,-217.77541,0.00021445,7]
[389781239,1759846248121,-217.77541,0.00021445,7]
[389781241,1759846248131,-217.77541,0.00021445,7]
[389781243,1759846248141,-217.77541,0.00021445,7]
[389781245,1759846248151,-857.0,0.00021446,2]
[389781247,1759846248160,-857.0,0.00021447,2]
[389781248,1759846248170,-151.0,0.00021447,7]
[389781250,1759846248179,-151.0,0.00021447,7]
[389781252,1759846248189,-151.0,0.00021447,7]
[389781254,1759846248199,-246.368308,0.00021447,7]
[389781256,1759846248209,-151.0,0.00021447,7]
[389781258,1759846248219,-246.368308,0.00021447,7]
[389781260,1759846248228,-246.368308,0.00021447,7]
[389781262,1759846248238,-246.368308,0.00021447,7]
[389781264,1759846248248,-152.224132,0.00021447,7]
[389781266,1759846248257,-1275.0,0.00021451,2]
[389781268,1759846248267,-1332.0,0.00021451,2]
[389781270,1759846248276,-572.09867,0.0002149,7]
[389781272,1759846248287,-151.0,0.0002149,7]
[389781274,1759846248297,-572.09867,0.0002149,7]
[389781276,1759846248307,-572.09867,0.0002149,7]
[389781278,1759846248321,-572.09867,0.0002149,7]
[389781280,1759846248331,-500.0,0.00021497,2]
[389781282,1759846248341,-500.0,0.00021497,2]
[389781284,1759846248351,-500.0,0.00021497,2]
[389781286,1759846248360,-12685.86082688,0.000215,2]
[389781288,1759846248369,-1922.2,0.000215,2]
[389781290,1759846248378,-2000.0,0.000215,2]
[389781292,1759846248388,-151.0,0.000215,7]
[389781294,1759846248397,-400.986,0.000215,2]
[389781296,1759846248407,-400.986,0.000215,2]
[389781298,1759846248415,-400.986,0.000215,2]
[389781300,1759846248424,-400.986,0.000215,2]
[389781302,1759846248433,-151.0,0.000215,7]
[389781304,1759846248443,-151.0,0.000215,7]
[389781306,1759846248454,-2000.0,0.000215,2]
[389781308,1759846248463,-151.0,0.000215,7]
[389781310,1759846248472,-221.724935,0.000215,7]
[389781312,1759846248482,-226.855339,0.000215,7]
[389781314,1759846248492,-226.855339,0.000215,7]
[389781316,1759846248501,-226.855339,0.000215,7]
[389781318,1759846248510,-226.855339,0.000215,7]
[389781320,1759846248520,-151.0,0.000215,7]
[389781322,1759846248529,-151.0,0.000215,7]
[389781323,1759846248538,-151.0,0.000215,7]
[389781325,1759846248548,-151.0,0.000215,7]
[389781327,1759846248557,-151.0,0.000215,7]
[389781329,1759846248575,-151.0,0.000215,7]
[389781331,1759846248584,-151.0,0.000215,7]
[389781333,1759846248593,-1024.730886,0.000215,7]
[389781335,1759846248603,-1024.730886,0.000215,7]
[389781337,1759846248612,-1024.730886,0.000215,7]
[389781339,1759846248623,-1024.730886,0.000215,7]
[389781341,1759846248633,-151.0,0.000215,7]
[389781343,1759846248643,-1274.190011,0.000215,7]
[389781345,1759846248654,-1274.190011,0.000215,7]
[389781347,1759846248664,-432.621204,0.000215,7]
[389781349,1759846248675,-1274.190011,0.000215,7]
[389781351,1759846248684,-432.621204,0.000215,7]
[389781353,1759846248693,-1274.190011,0.000215,7]
[389781355,1759846248704,-432.621204,0.000215,7]
[389781356,1759846248713,-151.0,0.000215,7]
[389781358,1759846248723,-432.621204,0.000215,7]
[389781360,1759846248732,-151.0,0.000215,7]
[389781362,1759846248742,-151.0,0.000215,7]
[389781364,1759846248751,-218.264212,0.000215,7]
[389781366,1759846248760,-218.264212,0.000215,7]
[389781368,1759846248769,-218.264212,0.000215,7]
[389781370,1759846248779,-218.264212,0.000215,7]
[389781372,1759846248789,-151.0,0.000215,7]
[389781374,1759846248800,-151.0,0.000215,7]
[389781376,1759846248810,-151.0,0.000215,7]
[389781378,1759846248829,-255.24656141,0.000215,7]
[389781380,1759846248839,-712.235839,0.000215,7]
[389781382,1759846248848,-712.235839,0.000215,7]
[389781384,1759846248859,-151.0,0.000215,7]
[389781386,1759846248868,-712.235839,0.000215,7]
[389781388,1759846248878,-712.235839,0.000215,7]
[389781390,1759846248888,-151.0,0.000215,7]
[389781392,1759846248898,-151.0,0.000215,7]
[389781394,1759846248908,-10000.0,0.000215,7]
[389781396,1759846248917,-152.571811,0.000215,7]
[389781398,1759846248927,-10000.0,0.000215,7]
[389781399,1759846248936,-10000.0,0.000215,7]
[389781401,1759846248947,-10000.0,0.000215,7]
[389781403,1759846248958,-10000.0,0.000215,7]
[389781405,1759846248967,-10000.0,0.000215,7]
[389781407,1759846248981,-10000.0,0.000215,7]
[389781409,1759846248991,-10000.0,0.000215,7]
[389781411,1759846249001,-217.77541,0.000215,7]
[389781413,1759846249011,-217.77541,0.000215,7]
[389781415,1759846249020,-217.77541,0.000215,7]
[389781417,1759846249030,-217.77541,0.000215,7]
[389781419,1759846249039,-151.0,0.000215,7]
[389781421,1759846249051,-151.0,0.000215,7]
[389781423,1759846249064,-151.0,0.000215,7]
[389781425,1759846249077,-151.0,0.000215,7]
[389781427,1759846249088,-151.0,0.000215,7]
[389781429,1759846249098,-151.0,0.000215,7]
[389781430,1759846249110,-285.358444,0.000215,7]
[389781432,1759846249120,-151.0,0.000215,7]
[389781434,1759846249129,-151.0,0.000215,7]
[389781436,1759846249140,-151.0,0.000215,7]
[389781438,1759846249149,-283.38642,0.000215,7]
[389781440,1759846249158,-151.0,0.000215,7]
[389781442,1759846249168,-153.018632,0.000215,7]
[389781444,1759846249177,-151.0,0.000215,7]
[389781446,1759846249188,-151.0,0.000215,7]
[389781448,1759846249197,-151.0,0.000215,7]
[389781450,1759846249209,-151.0,0.000215,7]
[389781452,1759846249218,-175.249576,0.000215,7]
[389781454,1759846249227,-151.0,0.000215,7]
[389781456,1759846249236,-245.561612,0.000215,7]
[389781458,1759846249246,-1757.858221,0.000215,7]
[389781460,1759846249255,-1757.858221,0.000215,7]
[389781462,1759846249264,-1757.858221,0.000215,7]
[389781464,1759846249274,-1757.858221,0.000215,7]
[389781466,1759846249283,-1757.858221,0.000215,7]
[389781467,1759846249293,-1211.65633698,0.000215,7]
[389781500,1759846249634,-540.56724051,0.000215,7]
[389781503,1759846249647,-5.63464351,0.000215,7]
[389781504,1759846249656,-1600.20348321,0.000215,7]
[389781507,1759846249668,-157.65473779,0.000215,7]
[389781509,1759846249679,-1757.858221,0.000215,7]
[389781511,1759846249689,-304.822825,0.000215,7]
[389781513,1759846249699,-304.822825,0.000215,7]
[389781515,1759846249709,-304.822825,0.000215,7]
[389781517,1759846249719,-304.822825,0.000215,7]
[389781518,1759846249728,-304.822825,0.000215,7]
[389781520,1759846249739,-304.822825,0.000215,7]
[389781522,1759846249748,-304.822825,0.000215,7]
[389781524,1759846249758,-304.822821,0.000215,7]
[389781526,1759846249769,-151.0,0.000215,7]
[389781528,1759846249780,-151.0,0.000215,7]
[389781530,1759846249789,-151.0,0.000215,7]
[389781532,1759846249799,-151.0,0.000215,7]
[389781534,1759846249809,-151.0,0.000215,7]
[389781536,1759846249825,-151.0,0.000215,7]
[389781538,1759846249835,-6.04618321,0.000215,7]
[389781576,1759846250227,-713.39340821,0.0001769,2]
[389781578,1759846250238,-144.95381679,0.000215,7]
[389781580,1759846250248,-200.0,0.0002151,2]
[389781581,1759846250258,-1332.0,0.00021525,2]
[389781582,1759846250269,-857.0,0.00021535,2]
[389781583,1759846250280,-1332.0,0.00021541,2]
[389781584,1759846250291,-500.0,0.00021573,2]
[389781585,1759846250300,-500.0,0.00021573,2]
[389781586,1759846250310,-500.0,0.00021573,2]
[389781587,1759846250329,-500.0,0.00021573,2]
[389781588,1759846250340,-500.0,0.00021573,2]
[389781589,1759846250352,-500.0,0.00021573,2]
[389781590,1759846250363,-500.0,0.00021573,2]
[389781591,1759846250374,-500.0,0.00021573,2]
[389781592,1759846250387,-500.0,0.00021573,2]
[389781593,1759846250397,-500.0,0.00021573,2]
[389781594,1759846250409,-500.0,0.00021573,2]
[389781595,1759846250419,-500.0,0.00021573,2]
[389781596,1759846250430,-500.0,0.00021573,2]
[389781597,1759846250440,-500.0,0.00021573,2]
[389781598,1759846250450,-200.18899374,0.00021573,2]
[389781599,1759846250461,-500.0,0.00021573,2]
[389781600,1759846250472,-500.0,0.00021573,2]
[389781601,1759846250482,-500.0,0.00021573,2]
[389781602,1759846250492,-530.76335332,0.00021573,2]
[389781603,1759846250501,-928.0,0.000216,2]
[389781604,1759846250512,-4000.0,0.00021608,2]
[389781606,1759846250522,-4000.0,0.00021608,2]
[389781607,1759846250533,-4000.0,0.00021608,2]
[389781609,1759846250543,-4000.0,0.00021608,2]
[389781611,1759846250553,-2000.0,0.00021616,2]
[389781613,1759846250569,-1000.0,0.00021621,2]
[389781615,1759846250580,-1000.0,0.00021621,2]
[389781617,1759846250589,-1000.0,0.00021621,2]
[389781619,1759846250600,-1000.0,0.00021621,2]
[389781621,1759846250610,-163.1597617,0.00021621,2]
[389781623,1759846250620,-1000.0,0.00021621,2]
[389781625,1759846250630,-1000.0,0.00021621,2]
[389781627,1759846250641,-1000.0,0.00021621,2]
[389781629,1759846250651,-1000.0,0.00021621,2]
[389781631,1759846250662,-1000.0,0.00021621,2]
[389781633,1759846250672,-742.43363358,0.00021621,2]
[389781635,1759846250682,-1000.0,0.00021621,2]
[389781637,1759846250692,-213.64385673,0.00021621,2]
[389781639,1759846250703,-1000.0,0.00021621,2]
[389781641,1759846250712,-1000.0,0.00021621,2]
[389781643,1759846250723,-1000.0,0.00021621,2]
[389781645,1759846250733,-1000.0,0.00021621,2]
[389781647,1759846250743,-1000.0,0.00021621,2]
[389781649,1759846250753,-478.46317594,0.00021621,2]
[389781652,1759846250777,-521.53682406,0.00021621,2]
[389781654,1759846250787,-1000.0,0.00021621,2]
[389781656,1759846250797,-1000.0,0.00021621,2]
[389781658,1759846250807,-1000.0,0.00021621,2]
[389781660,1759846250824,-503.39273137,0.00021621,2]
[389781662,1759846250834,-1000.0,0.00021621,2]
[389781664,1759846250844,-1000.0,0.00021621,2]
[389781666,1759846250854,-161.44090501,0.00021621,2]
[389781668,1759846250864,-1000.0,0.00021621,2]
[389781670,1759846250874,-717.57011708,0.00021621,2]
[389781672,1759846250884,-1000.0,0.00021621,2]
[389781674,1759846250893,-702.09374005,0.00021621,2]
[389781734,1759846251521,-297.90625995,0.00021621,2]
[389781736,1759846251532,-436.79375105,0.00021621,2]
[389781831,1759846252536,-160.0,0.00019023,2]
[389781833,1759846252546,-575.78754062,0.00019227,2]
[389783457,1759846296456,634.367813,0.00013699,2]
[389783458,1759846582960,1334.42757287,0.00017244,2]
[389783459,1759846591176,200.0,0.00027904,120]
[389783460,1759846711328,200.0,0.00028287,120]
[389783461,1759846833940,200.0,0.00028767,120]
[389783462,1759846843969,-552.24578965,0.00017581,2]
[389783463,1759846844003,-480.0,0.00017599,2]
[389783464,1759846844040,-300.0,0.00017599,2]
[389783465,1759846844073,-300.0,0.00017599,2]
[389783466,1759846844107,-300.0,0.00017599,2]
[389783467,1759846844145,-300.0,0.00017599,2]
[389783468,1759846844430,-300.0,0.00017599,2]
[389783469,1759846844464,-1200.0,0.00017599,2]
[389783470,1759846844494,-500.0,0.000176,2]
[389783471,1759846844525,-154.75935798,0.000176,2]
[389783472,1759846844555,-154.75935798,0.000176,2]
[389783473,1759846844586,-154.75935798,0.000176,2]
[389783474,1759846844616,-231.68209516,0.000176,2]
[389783475,1759846847822,-2562.12399648,0.000176,2]
[389783476,1759846847852,-151.0,0.000176,2]
[389783477,1759846848030,-743.41997998,0.000176,2]
[389783478,1759846851886,-10000.01,0.000176,2]
[389783479,1759846926258,1761.1366,0.00028767,120]
[389783480,1759847010902,200.0,0.00028629,120]
[389783481,1759847071794,200.0,0.00028312,120]
[389783495,1759847264006,1449.134348,0.00016683,2]
[389783497,1759847289655,5021.0,0.00026,60]
[389783498,1759847293602,419.91331187,0.00010618,2]
[389783499,1759847295455,8130.96234013,0.000125,2]
[389783500,1759847295478,3383.05568324,0.000125,2]
[389783501,1759847302576,1005.94475487,0.00015,2]
[389783502,1759847308598,285.9551423,0.0001,2]
[389783503,1759847315987,5325.05441959,0.00015,2]
[389783504,1759847316020,10000.01,0.00015,2]
[389783505,1759847316045,10000.01,0.00015,2]
[389783506,1759847316068,4368.42670987,0.00015,2]
[389783507,1759847317793,1000.0,0.0001,2]
[389783508,1759847324405,10000.01,0.0001,2]
[389783509,1759847324432,10000.01,0.0001,2]
[389783510,1759847324457,10000.01,0.0001,2]
[389783511,1759847324481,10000.01,0.0001,2]
[389783512,1759847324505,2487.3851522,0.0001,2]
[389783513,1759847324892,1814.13430851,0.0001,2]
[389783614,1759847436357,-506.4277364,0.00017581,2]
[389783615,1759847436367,-200.0,0.00017581,2]
[389783616,1759847436376,-522.3722636,0.000176,2]
[389783617,1759847436412,-1185.71040072,0.000176,2]
[389783618,1759847436422,-185.34567612,0.000176,2]
[389783619,1759847436431,-1200.0,0.00017671,2]
[389783620,1759847436441,-300.0,0.00017672,2]
[389783621,1759847436450,-300.0,0.00017672,2]
[389783622,1759847436460,-300.0,0.00017672,2]
[389783623,1759847436473,-33881.53496752,0.00017673,2]
[389783624,1759847436483,-381.38,0.00017681,3]
[389783625,1759847436492,-190.69,0.00017681,3]
[389783626,1759847436502,-572.09,0.00017681,3]
[389783627,1759847436511,-180.52644528,0.00017686,2]
[389783628,1759847436521,-500.0,0.00017686,2]
[389783629,1759847436531,-500.0,0.00017686,2]
[389783630,1759847436540,-500.0,0.00017686,2]
[389783631,1759847436550,-500.0,0.00017686,2]
[389783632,1759847436559,-500.0,0.00017686,2]
[389783633,1759847436569,-500.0,0.00017686,2]
[389783634,1759847436578,-500.0,0.00017686,2]
[389783635,1759847436588,-500.0,0.00017686,2]
[389783636,1759847436597,-500.0,0.00017686,2]
[389783637,1759847436606,-500.0,0.00017686,2]
[389783638,1759847436616,-500.0,0.00017686,2]
[389783639,1759847436625,-500.0,0.00017686,2]
[389783640,1759847436635,-500.0,0.00017686,2]
[389783641,1759847436644,-500.0,0.00017686,2]
[389783642,1759847436653,-500.0,0.00017686,2]
[389783643,1759847436663,-500.0,0.00017686,2]
[389783644,1759847436672,-500.0,0.00017686,2]
[389783645,1759847436682,-201.29717414,0.00017686,2]
[389783646,1759847436691,-650.77098619,0.00017686,2]
[389783647,1759847436700,-500.0,0.00017686,2]
[389783648,1759847436709,-500.0,0.00017686,2]
[389783649,1759847436718,-500.0,0.00017686,2]
[389783650,1759847436727,-500.0,0.00017686,2]
[389783651,1759847436736,-500.0,0.00017686,2]
[389783652,1759847436745,-500.0,0.00017686,2]
[389783653,1759847436754,-500.0,0.00017686,2]
[389783654,1759847436764,-500.0,0.00017686,2]
[389783655,1759847436772,-500.0,0.00017686,2]
[389783656,1759847436783,-500.0,0.00017686,2]
[389783657,1759847436795,-500.0,0.00017686,2]
[389783658,1759847436808,-500.0,0.00017686,2]
[389783659,1759847436818,-500.0,0.00017686,2]
[389783660,1759847436827,-500.0,0.00017686,2]
[389783661,1759847436836,-500.0,0.00017686,2]
[389783662,1759847436845,-500.0,0.00017686,2]
[389783663,1759847436855,-500.0,0.00017686,2]
[389783664,1759847436864,-500.0,0.00017686,2]
[389783665,1759847436873,-500.0,0.00017686,2]
[389783666,1759847436883,-500.0,0.00017686,2]
[389783667,1759847436893,-135.85645806,0.00017686,2]
[389783668,1759847436905,-364.14354194,0.00017686,2]
[389783669,1759847436915,-500.0,0.00017686,2]
[389783670,1759847436925,-500.0,0.00017686,2]
[389783671,1759847436936,-500.0,0.00017686,2]
[389783672,1759847436946,-500.0,0.00017686,2]
[389783673,1759847436956,-500.0,0.00017686,2]
[389783674,1759847436967,-500.0,0.00017686,2]
[389783675,1759847436977,-500.0,0.00017686,2]
[389783676,1759847436987,-500.0,0.00017686,2]
[389783677,1759847436997,-500.0,0.00017686,2]
[389783678,1759847437007,-500.0,0.00017686,2]
[389783679,1759847437017,-392.5445338,0.00017686,2]
[389783680,1759847437026,-500.0,0.00017686,2]
[389783681,1759847437035,-500.0,0.00017686,2]
[389783682,1759847437045,-500.0,0.00017686,2]
[389783683,1759847437059,-500.0,0.00017686,2]
[389783684,1759847437069,-503.51794159,0.00017686,2]
[389783685,1759847437079,-500.0,0.00017686,2]
[389783686,1759847437089,-500.0,0.00017686,2]
[389783687,1759847437098,-500.0,0.00017686,2]
[389783688,1759847437107,-500.0,0.00017686,2]
[389783689,1759847437116,-500.0,0.00017686,2]
[389783690,1759847437126,-500.0,0.00017687,2]
[389783691,1759847437136,-500.0,0.0001769,2]
[389783692,1759847437146,-302.93184588,0.0001769,2]
[389783693,1759847437155,-401.10024479,0.0001769,2]
[389783694,1759847437164,-7277.00362797,0.00017691,2]
[389783695,1759847437185,-500.0,0.00017686,2]
[389783696,1759847437195,-18356.84221427,0.00017691,2]
[389783773,1759847437843,-500.0,0.00017686,2]
[389783774,1759847437854,-500.0,0.00017686,2]
[389783775,1759847437864,-598.55919505,0.00017686,2]
[389783776,1759847437873,-500.0,0.00017686,2]
[389783777,1759847437882,-500.0,0.00017686,2]
[389783778,1759847437892,-156.71594665,0.00017686,2]
[389783779,1759847437901,-344366.15415776,0.00017691,2]
[389783780,1759847437910,-151.0,0.000177,2]
[389783781,1759847437919,-966.46148311,0.00017808,7]
[389783782,1759847437929,-151.0,0.00017889,2]
[389783783,1759847437938,-151.0,0.00017889,2]
[389783786,1759847437947,-205.3908823,0.00017889,2]
[389783787,1759847437957,-151.0,0.00017889,2]
[389783788,1759847437967,-151.57643874,0.00017889,2]
[389783789,1759847437976,-500.0,0.00017889,2]
[389783790,1759847437985,-500.0,0.00017889,2]
[389783791,1759847437994,-151.0,0.00017889,2]
[389783792,1759847438002,-500.0,0.00017889,2]
[389783793,1759847438011,-500.0,0.00017889,2]
[389783794,1759847438021,-215.13416699,0.00017889,2]
[389783795,1759847438030,-500.0,0.00017889,2]
[389783796,1759847438039,-151.0,0.00017889,2]
[389783797,1759847438053,-500.0,0.00017889,2]
[389783798,1759847438063,-151.0,0.00017889,2]
[389783799,1759847438074,-151.0,0.00017889,2]
[389783800,1759847438084,-301.999999,0.00017889,2]
[389783801,1759847438093,-151.0,0.00017889,2]
[389783802,1759847438102,-151.0,0.00017889,2]
[389783803,1759847438112,-151.0,0.00017889,2]
[389783804,1759847438121,-500.0,0.00017889,2]
[389783805,1759847438130,-500.0,0.00017889,2]
[389783806,1759847438139,-151.0,0.00017889,2]
[389783807,1759847438149,-151.0,0.00017889,2]
[389783808,1759847438158,-151.0,0.00017889,2]
[389783809,1759847438167,-1330.0,0.00017889,2]
[389783811,1759847438176,-151.0,0.00017889,2]
[389783813,1759847438186,-185.3456761,0.0001795,2]
[389783815,1759847438196,-3040.89138793,0.00018,3]
[389783817,1759847438205,-3226.48878925,0.00018,2]
[389783819,1759847438216,-339.91243257,0.00018,5]
[389783821,1759847438225,-4425.36206742,0.00018018,2]
[389783823,1759847438236,-300.0,0.00018044,2]
[389783825,1759847438245,-300.0,0.00018044,2]
[389783826,1759847438255,-300.0,0.00018044,2]
[389783828,1759847438264,-300.0,0.00018044,2]
[389783830,1759847438274,-300.0,0.00018044,2]
[389783833,1759847438284,-300.0,0.00018044,2]
[389783835,1759847438294,-300.0,0.00018044,2]
[389783837,1759847438307,-300.0,0.00018044,2]
[389783838,1759847438317,-300.0,0.00018044,2]
[389783841,1759847438327,-300.0,0.00018044,2]
[389783843,1759847438337,-300.0,0.00018044,2]
[389783845,1759847438346,-300.0,0.00018044,2]
[389783847,1759847438355,-300.0,0.00018044,2]
[389783848,1759847438365,-300.0,0.00018044,2]
[389783851,1759847438375,-300.0,0.00018044,2]
[389783853,1759847438385,-600.0,0.00018044,2]
[389783855,1759847438395,-151.0,0.000181,2]
[389783857,1759847438405,-151.0,0.00018163,2]
[389783858,1759847438414,-186.61502716,0.00018163,2]
[389783860,1759847438424,-500.82343283,0.00018163,2]
[389783863,1759847438434,-500.0,0.00018163,2]
[389783865,1759847438444,-151.0,0.00018163,2]
[389783867,1759847438455,-500.0,0.00018163,2]
[389783868,1759847438469,-500.0,0.00018163,2]
[389783870,1759847438479,-500.0,0.00018163,2]
[389783873,1759847438490,-151.0,0.00018163,2]
[389783875,1759847438499,-500.0,0.00018163,2]
[389783877,1759847438510,-151.0,0.00018163,2]
[389783878,1759847438521,-151.0,0.00018163,2]
[389783881,1759847438531,-257.23413138,0.00018163,2]
[389783882,1759847438541,-500.0,0.00018163,2]
[389783884,1759847438555,-151.0,0.00018163,2]
[389783885,1759847438566,-151.0,0.00018163,2]
[389783886,1759847438576,-1330.0,0.00018163,2]
[389783887,1759847438586,-500.0,0.0001825,2]
[389783888,1759847438595,-500.0,0.0001825,2]
[389783889,1759847438605,-612.46476475,0.00018263,2]
[389783890,1759847438614,-151.0,0.000183,2]
[389783891,1759847438624,-185.3456761,0.000183,2]
[389783892,1759847438634,-500.0,0.00018332,2]
[389783893,1759847438644,-500.0,0.00018332,2]
[389783894,1759847438653,-500.0,0.00018332,2]
[389783895,1759847438663,-159.63927334,0.00018332,2]
[389783896,1759847438673,-500.0,0.00018332,2]
[389783897,1759847438682,-500.0,0.00018332,2]
[389783898,1759847438692,-500.0,0.00018332,2]
[389783899,1759847438701,-500.0,0.00018332,2]
[389783901,1759847438710,-510.66639003,0.00018332,2]
[389783903,1759847438720,-1000.0,0.00018356,2]
[389783904,1759847438729,-345.0,0.00018423,2]
[389783906,1759847438739,-151.0,0.00018437,2]
[389783908,1759847438749,-500.0,0.00018437,2]
[389783910,1759847438758,-151.40055561,0.00018437,2]
[389783912,1759847438767,-151.0,0.00018437,2]
[389783914,1759847438776,-500.90172451,0.00018437,2]
[389783916,1759847438785,-152.9147262,0.00018437,2]
[389783918,1759847438795,-151.0,0.00018437,2]
[389783920,1759847438807,-500.0,0.00018437,2]
[389783922,1759847438817,-151.35091737,0.00018437,2]
[389783924,1759847438829,-151.0,0.00018437,2]
[389783926,1759847438838,-198.0,0.00018437,2]
[389783928,1759847438848,-1330.0,0.00018437,2]
[389783930,1759847438857,-12531.98298489,0.000185,2]
[389783932,1759847438866,-1000.00000001,0.000186,2]
[389783934,1759847438876,-151.0,0.000186,2]
[389783936,1759847438885,-151.0,0.000186,2]
[389783938,1759847438895,-1000.0,0.0001863,2]
[389783940,1759847438904,-185.3456761,0.0001865,2]
[389783941,1759847438914,-198.29765707,0.00018711,2]
[389783944,1759847438925,-380.59985086,0.00018711,2]
[389783946,1759847438935,-194.81870126,0.00018711,2]
[389783948,1759847438945,-500.0,0.00018711,2]
[389783950,1759847438955,-198.0,0.00018711,2]
[389783952,1759847438966,-349.0,0.00018711,2]
[389783954,1759847438976,-1330.0,0.00018711,2]
[389783956,1759847438986,-1000.0,0.00018798,2]
[389783958,1759847438996,-1000.0,0.00018798,2]
[389783960,1759847439006,-1000.0,0.0001888,2]
[389783962,1759847439015,-1000.0,0.0001888,2]
[389783964,1759847439026,-1000.0,0.0001888,2]
[389783966,1759847439036,-1000.0,0.0001888,2]
[389783968,1759847439046,-1000.0,0.0001888,2]